bitfinex-derivatives/quotes_SOLF0:USTF0_20250731
["timestamp","ask_amount","ask_price","bid_price","bid_amount"]
[1753968800559,4.59129542,177.25,177.2,6.53711742]
[1753968800745,4.59129542,177.24,177.2,6.53711742]
[1753968800944,4.63990983,177.29,177.2,6.53711742]
[1753968801152,20.0464949,177.28,177.19,6.53711742]
[1753968801351,4.63262296,177.27,177.17,6.53711742]
[1753968801546,11.16974038,177.26,177.07,11.2957]
[1753968801749,4.63262296,177.25,177.15,6.53711742]
[1753968801957,9.27253279,177.25,177.15,6.53711742]
[1753968802155,5.6438,177.21,177.16,5.6449]
[1753968802355,4.63990983,177.25,177.15,6.53711742]
[1753968802549,4.6286811,177.24,177.15,6.53711742]
[1753968802755,5.6437,177.21,177.15,6.53711742]
[1753968803360,5.6433,177.22,177.17,5.6448]
[1753968803558,4.62877142,177.21,177.17,6.53711742]
[1753968803760,4.63990983,177.26,177.19,6.53711742]
[1753968803954,5.6429,177.23,177.19,12.18121742]
[1753968804155,4.63990983,177.27,177.19,6.53711742]
[1753968804354,4.62919298,177.26,177.19,6.53711742]
[1753968804553,4.62919298,177.25,177.19,6.53711742]
[1753968804754,4.62919298,177.24,177.19,6.53711742]
[1753968805161,4.62919298,177.23,177.19,12.18101742]
[1753968805462,4.63990983,177.3,177.21,6.53711742]
[1753968805657,4.6308462,177.29,177.21,6.53711742]
[1753968805850,6.53711742,177.28,177.18,6.53711742]
[1753968806050,6.53711742,177.26,177.16,6.53711742]
[1753968806255,4.6308462,177.25,177.17,5.6446]
[1753968806859,5.6434,177.22,177.18,5.6444]
[1753968807265,11.17702725,177.26,177.18,5.6444]
[1753968807562,5.6431,177.23,177.18,5.6444]
[1753968807762,4.69450015,177.22,177.18,5.6444]
[1753968808264,4.63990983,177.26,177.19,5.644]
[1753968808467,6.53711742,177.28,177.19,5.644]
[1753968808468,4.69570759,177.25,177.19,5.644]
[1753968808657,4.69570759,177.24,177.17,6.53711742]
[1753968808857,4.69570759,177.23,177.1,6.53711742]
[1753968809165,4.69570759,177.22,177.15,6.53711742]
[1753968809365,4.63990983,177.24,177.15,6.53711742]
[1753968809366,4.69570759,177.21,177.15,6.53711742]
[1753968809558,4.69570759,177.2,177.15,6.53711742]
[1753968809758,5.644,177.2,177.15,6.53711742]
[1753968809962,4.63990983,177.25,177.15,6.53711742]
[1753968810268,5.6432,177.22,177.17,6.53711742]
[1753968810564,4.69736105,177.21,177.18,5.6443]
[1753968810765,6.53711742,177.24,177.15,6.53711742]
[1753968811064,4.69687415,177.23,177.17,5.6447]
[1753968811264,5.6437,177.21,177.17,6.53711742]
[1753968811460,4.63990983,177.25,177.17,6.53711742]
[1753968811658,4.69697929,177.24,177.17,6.53711742]
[1753968811858,4.69697929,177.24,177.16,5.645]
[1753968812261,5.6439,177.2,177.16,5.645]
[1753968812461,4.63990983,177.25,177.16,5.645]
[1753968812662,4.69689758,177.24,177.17,5.6448]
[1753968812964,4.69689758,177.23,177.21,6.53711742]
[1753968813155,4.63990983,177.29,177.23,5.6427]
[1753968813361,4.69365418,177.28,177.24,6.53711742]
[1753968813670,4.69365418,177.27,177.22,6.53711742]
[1753968813969,4.69365418,177.26,177.2,6.53711742]
[1753968814161,6.53711742,177.31,177.2,6.53711742]
[1753968814162,4.69365418,177.25,177.2,6.53711742]
[1753968814362,4.63990983,177.29,177.2,12.18071742]
[1753968814564,9.33311099,177.28,177.18,6.53711742]
[1753968814866,5.6434,177.22,177.17,5.6445]
[1753968815068,4.63990983,177.26,177.16,6.53711742]
[1753968815367,5.6437,177.21,177.17,5.6448]
[1753968816360,11.17702725,177.25,177.16,6.53711742]
[1753968816556,4.73391102,177.24,177.16,6.53711742]
[1753968816760,11.17702725,177.25,177.14,12.18281742]
[1753968816761,4.73391102,177.23,177.14,12.18281742]
[1753968816961,4.73391102,177.22,177.14,12.18281742]
[1753968817258,4.73391102,177.21,177.14,12.18281742]
[1753968817456,4.73391102,177.2,177.14,6.53711742]
[1753968817656,6.53711742,177.23,177.14,6.53711742]
[1753968817857,5.6441,177.19,177.12,6.53711742]
[1753968818065,6.53711742,177.23,177.14,5.6455]
[1753968818263,4.73533011,177.22,177.14,5.6455]
[1753968818468,5.6447,177.18,177.14,5.6455]
[1753968818667,6.53711742,177.23,177.14,5.6455]
[1753968818862,4.73533011,177.22,177.12,6.53711742]
[1753968819068,9.37523994,177.21,177.11,6.53711742]
[1753968819263,4.73533011,177.2,177.11,6.53711742]
[1753968819568,5.6453,177.16,177.12,5.6461]
[1753968820068,4.63990983,177.21,177.15,6.53711742]
[1753968820268,4.73400537,177.2,177.17,6.53711742]
[1753968820471,4.73400537,177.19,177.17,6.53711742]
[1753968820770,5.6437,177.21,177.17,12.18171742]
[1753968821069,4.73414103,177.2,177.17,12.18171742]
[1753968821263,4.73414103,177.19,177.17,12.18171742]
[1753968821462,5.6437,177.21,177.17,12.18171742]
[1753968821670,4.73454362,177.2,177.17,12.18171742]
[1753968821867,4.63990983,177.24,177.17,6.53711742]
[1753968822068,4.73452198,177.23,177.17,6.53711742]
[1753968822268,4.73452198,177.22,177.17,6.53711742]
[1753968822467,4.73452198,177.21,177.18,5.6444]
[1753968822669,4.73452198,177.2,177.18,5.6444]
[1753968822973,4.63990983,177.24,177.18,5.6444]
[1753968823161,9.37519782,177.23,177.15,6.53711742]
[1753968823467,4.73528799,177.22,177.16,6.53711742]
[1753968823658,4.73528799,177.21,177.15,6.53711742]
[1753968823863,4.73528799,177.2,177.14,6.53711742]
[1753968824067,4.73528799,177.19,177.14,6.53711742]
[1753968824267,4.63990983,177.23,177.15,5.6452]
[1753968824469,5.6447,177.18,177.14,6.53711742]
[1753968824670,11.17702725,177.22,177.13,5.6458]
[1753968824867,9.43807768,177.21,177.12,6.53711742]
[1753968825064,5.645,177.17,177.12,6.53711742]
[1753968825263,4.63990983,177.21,177.12,6.53711742]
[1753968825464,5.6451,177.17,177.12,6.53711742]
[1753968825665,4.79802725,177.16,177.12,6.53711742]
[1753968825863,4.63990983,177.2,177.12,6.53711742]
[1753968826068,4.79798567,177.19,177.14,6.53711742]
[1753968826272,4.63990983,177.23,177.1,106.76]
[1753968826467,4.79864176,177.22,177.1,113.29711742]
[1753968826669,4.79864176,177.21,177.18,6.53711742]
[1753968826863,4.79912806,177.2,177.1,106.76]
[1753968827069,4.63990983,177.24,177.1,106.76]
[1753968827070,5.6431,177.23,177.16,6.53711742]
[1753968827268,4.7991536,177.22,177.16,6.53711742]
[1753968827473,4.63990983,177.26,177.1,124.59071742]
[1753968827673,5.6428,177.24,177.18,6.53711742]
[1753968827879,4.64740832,177.23,177.16,6.53711742]
[1753968828176,4.64740832,177.22,177.16,6.53711742]
[1753968828473,4.64740832,177.21,177.16,6.53711742]
[1753968828684,4.63990983,177.25,177.16,6.53711742]
[1753968828882,9.28684619,177.25,177.16,6.53711742]
[1753968829071,6.53711742,177.26,177.16,6.53711742]
[1753968829072,4.64693636,177.24,177.17,5.6446]
[1753968829270,4.64693636,177.23,177.16,6.53711742]
[1753968829481,4.64693636,177.22,177.18,6.53711742]
[1753968829682,4.63990983,177.29,177.2,6.53711742]
[1753968829979,4.64658069,177.28,177.24,6.53711742]
[1753968830274,8.069e-05,177.27,177.26,6.53711742]
[1753968830471,4.63990983,177.37,177.26,6.53711742]
[1753968830672,4.32669771,177.36,177.33,6.53711742]
[1753968830872,4.63990983,177.4,177.35,6.53711742]
[1753968831074,4.63990983,177.43,177.37,6.53711742]
[1753968831270,135.18538162,177.46,177.37,6.53711742]
[1753968831475,4.2468871,177.45,177.37,6.53711742]
[1753968831676,5.638,177.39,177.35,6.53711742]
[1753968831884,5.638,177.39,177.29,106.92]
[1753968832071,6.53711742,177.45,177.34,6.53711742]
[1753968832268,6.53711742,177.45,177.36,6.53711742]
[1753968832469,6.53711742,177.45,177.29,106.92]
[1753968832781,6.53711742,177.39,177.28,6.53711742]
[1753968833282,5.6388,177.36,177.3,6.53711742]
[1753968833478,6.53711742,177.41,177.3,6.53711742]
[1753968833781,5.6392,177.35,177.3,12.17751742]
[1753968834279,5.6388,177.36,177.3,6.53711742]
[1753968834477,6.53711742,177.41,177.31,5.6401]
[1753968834777,11.17702725,177.45,177.35,6.53711742]
[1753968834971,135.18538162,177.46,177.35,6.53711742]
[1753968835175,5.6374,177.41,177.36,5.6386]
[1753968835376,135.18538162,177.46,177.36,5.6386]
[1753968835582,135.18538162,177.46,177.35,6.53711742]
[1753968835869,5.6377,177.4,177.35,12.17611742]
[1753968837678,5.6377,177.4,177.35,6.53711742]
[1753968837987,5.638,177.39,177.35,6.53711742]
[1753968838280,5.6377,177.4,177.35,6.53711742]
[1753968838480,113.45711742,177.47,177.35,6.53711742]
[1753968838781,113.45711742,177.47,177.32,5.64]
[1753968839077,6.53711742,177.41,177.3,6.53711742]
[1753968839484,5.6391,177.35,177.3,12.17761742]
[1753968839984,5.6388,177.36,177.3,12.17761742]
[1753968840284,106.92,177.47,177.32,6.53711742]
[1753968840485,6.53711742,177.43,177.32,6.53711742]
[1753968840684,6.53711742,177.43,177.32,12.17701742]
[1753968841281,6.53711742,177.43,177.32,6.53711742]
[1753968841591,379.36,177.49,177.4,6.53711742]
[1753968841985,6.53711742,177.53,177.44,6.53711742]
[1753968842184,6.53711742,177.51,177.4,6.53711742]
[1753968842383,4.32184462,177.5,177.4,6.53711742]
[1753968842578,4.32184462,177.49,177.4,6.53711742]
[1753968842784,4.32184462,177.48,177.4,6.53711742]
[1753968842976,6.53711742,177.51,177.4,6.53711742]
[1753968843180,4.32125626,177.5,177.4,12.17431742]
[1753968843383,4.32125626,177.49,177.4,6.53711742]
[1753968843580,106.9,177.55,177.43,5.6365]
[1753968843780,4.31902282,177.54,177.46,6.53711742]
[1753968843985,4.31902282,177.53,177.46,6.53711742]
[1753968844178,6.53711742,177.53,177.34,106.86]
[1753968844391,6.53711742,177.51,177.39,6.53711742]
[1753968844688,6.53711742,177.45,177.3,379.12]
[1753968844890,6.53711742,177.45,177.34,6.53711742]
[1753968845486,6.53711742,177.43,177.32,6.53711742]
[1753968845688,6.53711742,177.43,177.3,379.12]
[1753968845886,6.53711742,177.41,177.31,6.53711742]
[1753968846187,6.53711742,177.41,177.33,5.6396]
[1753968846778,9.92311782,177.42,177.29,9.92311782]
[1753968847287,9.92311782,177.39,177.26,9.92311782]
[1753968847489,9.92311782,177.39,177.24,9.92311782]
[1753968847691,9.92311782,177.36,177.24,9.92311782]
[1753968847985,9.92311782,177.33,177.2,404.80505154]
[1753968848781,9.92311782,177.37,177.27,5.6413]
[1753968848984,4.1925132,177.36,177.23,9.92311782]
[1753968849192,9.92311782,177.37,177.23,9.92311782]
[1753968849391,4.19207714,177.36,177.23,9.92311782]
[1753968849591,9.92311782,177.37,177.26,9.92311782]
[1753968849794,5.6391,177.35,177.26,9.92311782]
[1753968849985,116.98311782,177.4,177.26,9.92311782]
[1753968850182,4.1903988,177.39,177.26,9.92311782]
[1753968850395,5.6393,177.35,177.3,5.6406]
[1753968850590,107.06,177.4,177.29,9.92311782]
[1753968850791,9.92311782,177.44,177.32,9.92311782]
[1753968851096,388.92311782,177.47,177.35,9.92311782]
[1753968851290,4.1914583,177.46,177.35,9.92311782]
[1753968851486,4.1914583,177.45,177.35,9.92311782]
[1753968851689,4.19118161,177.44,177.35,9.92311782]
[1753968851886,4.19118161,177.44,177.33,5.6397]
[1753968851887,4.19072672,177.43,177.33,5.6397]
[1753968852095,9.92311782,177.44,177.33,5.6397]
[1753968852289,4.1906061,177.43,177.21,11.2868]
[1753968852489,5.6391,177.35,177.31,5.6401]
[1753968852686,5.6391,177.35,177.27,9.92311782]
[1753968852891,9.92311782,177.41,177.27,9.92311782]
[1753968853092,9.92311782,177.44,177.3,9.92311782]
[1753968853397,9.92311782,177.44,177.33,9.92311782]
[1753968853590,4.18985948,177.43,177.34,5.6393]
[1753968853792,9.92311782,177.44,177.33,9.92311782]
[1753968854092,4.18985176,177.43,177.33,9.92311782]
[1753968854390,4.18985176,177.43,177.24,9.92311782]
[1753968854391,9.92311782,177.41,177.29,9.92311782]
[1753968854591,5.6396,177.34,177.26,9.92311782]
[1753968854789,9.92311782,177.38,177.23,9.92311782]
[1753968855493,9.92311782,177.35,177.23,9.92311782]
[1753968855694,9.92311782,177.36,177.23,9.92311782]
[1753968856092,5.6405,177.31,177.23,9.92311782]
[1753968856396,9.92311782,177.36,177.23,9.92311782]
[1753968856594,9.92311782,177.33,177.2,404.80505154]
[1753968857199,9.92311782,177.35,177.2,404.80505154]
[1753968857797,5.6409,177.3,177.25,5.642]
[1753968858299,5.6404,177.31,177.2,404.80505154]
[1753968859300,9.92311782,177.38,177.26,9.92311782]
[1753968859498,4.19139452,177.37,177.23,9.92311782]
[1753968859701,9.92311782,177.35,177.23,9.92311782]
[1753968860198,5.6401,177.32,177.23,9.92311782]
[1753968860703,9.92311782,177.38,177.23,9.92311782]
[1753968861702,5.6399,177.33,177.25,5.6421]
[1753968861904,9.92311782,177.38,177.25,9.92311782]
[1753968862102,9.92311782,177.35,177.22,9.92311782]
[1753968862902,5.6405,177.31,177.23,5.6426]
[1753968863804,11.2747,177.41,177.2,394.88193372]
[1753968863805,9.92311782,177.39,177.25,9.92311782]
[1753968864003,4.1915787,177.38,177.25,9.92311782]
[1753968864198,9.92311782,177.39,177.25,9.92311782]
[1753968864501,107.34,177.44,177.2,394.88193372]
[1753968864502,9.92311782,177.42,177.28,9.92311782]
[1753968864702,4.19456392,177.41,177.28,9.92311782]
[1753968864904,9.92311782,177.42,177.28,9.92311782]
[1753968865104,4.19431084,177.41,177.31,9.92311782]
[1753968865301,5.6383,177.38,177.31,9.92311782]
[1753968865707,9.92311782,177.42,177.31,9.92311782]
[1753968865909,5.6378,177.39,177.31,9.92311782]
[1753968866507,5.6378,177.39,177.31,15.56321782]
[1753968867007,107.34,177.44,177.31,9.92311782]
[1753968867310,4.19770674,177.43,177.31,9.92311782]
[1753968867512,5.6386,177.37,177.31,9.92311782]
[1753968867807,107.34,177.44,177.31,9.92311782]
[1753968868005,5.6383,177.38,177.31,9.92311782]
[1753968868206,107.34,177.44,177.31,9.92311782]
[1753968868513,9.92311782,177.42,177.31,9.92311782]
[1753968868721,5.6391,177.35,177.31,9.92311782]
[1753968868911,9.92311782,177.39,177.26,107.2]
[1753968869108,5.64,177.32,177.26,107.2]
[1753968869310,9.92311782,177.39,177.26,107.2]
[1753968869607,4.20309368,177.38,177.26,107.2]
[1753968869813,9.92311782,177.39,177.26,107.2]
[1753968870119,4.20492886,177.38,177.26,107.2]
[1753968870419,5.6398,177.33,177.26,107.2]
[1753968871017,9.92311782,177.39,177.26,107.2]
[1753968871220,4.20676699,177.38,177.26,107.2]
[1753968871523,9.92311782,177.36,177.26,107.2]
[1753968871711,4.20676699,177.35,177.24,9.92311782]
[1753968872118,5.6412,177.29,177.24,9.92311782]
[1753968872327,9.92311782,177.36,177.22,5.6431]
[1753968872623,5.6407,177.3,177.24,5.6423]
[1753968872816,5.6407,177.3,177.24,6.53533564]
[1753968873018,5.6401,177.32,177.26,6.53533564]
[1753968873218,6.53533564,177.36,177.26,6.53533564]
[1753968873417,4.21272825,177.35,177.26,6.53533564]
[1753968873616,4.21272825,177.34,177.26,6.53533564]
[1753968873821,6.53533564,177.36,177.26,6.53533564]
[1753968874023,6.53533564,177.34,177.2,379.0]
[1753968874226,5.6409,177.3,177.23,5.6427]
[1753968874522,6.53533564,177.34,177.24,6.53533564]
[1753968874718,4.21402127,177.33,177.24,6.53533564]
[1753968874917,6.53533564,177.32,177.22,6.53533564]
[1753968875116,4.21338152,177.31,177.22,6.53533564]
[1753968875417,5.6418,177.27,177.2,385.53533564]
[1753968875619,6.53533564,177.3,177.2,385.53533564]
[1753968876321,6.53533564,177.3,177.2,379.0]
[1753968876623,4.21416708,177.29,177.19,107.06]
[1753968876819,6.53533564,177.28,177.19,107.06]
[1753968877021,4.63990983,177.38,177.08,379.14]
[1753968877221,11.2793,177.34,177.18,6.53533564]
[1753968877427,6.53533564,177.29,177.18,6.53533564]
[1753968877721,6.53533564,177.27,177.16,6.53533564]
[1753968878519,5.6434,177.22,177.16,6.53533564]
[1753968878719,6.53533564,177.27,177.16,6.53533564]
[1753968878915,6.53533564,177.25,177.14,113.69533564]
[1753968879123,6.53533564,177.23,177.14,6.53533564]
[1753968879330,6.53533564,177.23,177.09,107.2]
[1753968879624,5.6441,177.2,177.13,21.11270525]
[1753968880325,11.282,177.29,177.14,6.53533564]
[1753968880624,11.282,177.29,177.13,14.57736961]
[1753968880625,6.53533564,177.26,177.16,6.53533564]
[1753968880828,6.53533564,177.27,177.16,6.53533564]
[1753968881124,4.20317741,177.26,177.16,6.53533564]
[1753968881320,6.53533564,177.27,177.16,6.53533564]
[1753968881526,4.2015903,177.26,177.16,6.53533564]
[1753968881830,6.53533564,177.27,177.16,6.53533564]
[1753968882324,5.6438,177.21,177.16,6.53533564]
[1753968882526,6.53533564,177.25,177.14,6.53533564]
[1753968882724,6.53533564,177.22,177.12,6.53533564]
[1753968882917,6.53533564,177.18,177.06,6.53533564]
[1753968883121,6.53533564,177.18,177.08,6.53533564]
[1753968883320,6.53533564,177.2,177.1,6.53533564]
[1753968883919,5.6441,177.19,177.12,6.53533564]
[1753968884118,6.53533564,177.24,177.05,107.44]
[1753968884318,6.53533564,177.2,177.08,6.53533564]
[1753968884524,5.646,177.14,177.08,6.53533564]
[1753968884728,6.53533564,177.2,177.08,6.53533564]
[1753968884924,6.53533564,177.18,177.08,6.53533564]
[1753968886527,6.53533564,177.2,177.1,6.53533564]
[1753968886724,107.46,177.27,177.12,5.6461]
[1753968886928,6.53533564,177.24,177.12,6.53533564]
[1753968887129,6.53533564,177.22,177.12,6.53533564]
[1753968887329,6.53533564,177.18,177.08,6.53533564]
[1753968887729,6.53533564,177.18,177.07,6.53533564]
[1753968887930,6.53533564,177.18,177.07,12.18323564]
[1753968888130,6.53533564,177.18,177.07,6.53533564]
[1753968888533,11.2865,177.22,176.98,379.24]
[1753968888729,6.53533564,177.15,177.05,6.53533564]
[1753968889336,5.6469,177.11,177.05,6.53533564]
[1753968889537,6.53533564,177.15,177.05,6.53533564]
[1753968889932,6.53533564,177.13,177.03,6.53533564]
[1753968890533,6.53533564,177.11,177.0,6.53533564]
[1753968890736,6.53533564,177.09,177.0,6.53533564]
[1753968890932,6.53533564,177.08,176.98,379.24]
[1753968891434,5.649,177.04,176.98,379.24]
[1753968891636,6.53533564,177.08,176.98,379.24]
[1753968891836,6.53533564,177.08,176.97,6.53533564]
[1753968892038,5.6495,177.03,176.97,6.53533564]
[1753968892228,5.6495,177.03,176.96,107.42]
[1753968892427,5.6486,177.05,176.98,6.53533564]
[1753968892632,6.53533564,177.09,176.98,6.53533564]
[1753968893234,6.53533564,177.05,176.88,654.73258736]
[1753968893443,6.53533564,177.05,176.96,6.53533564]
[1753968893633,121.74081082,177.13,176.96,6.53533564]
[1753968893634,6.53533564,177.07,176.96,6.53533564]
[1753968893829,6.53533564,177.07,176.97,6.53533564]
[1753968894240,121.74081082,177.13,176.88,755.75725172]
[1753968894541,6.53533564,177.06,176.95,6.53533564]
[1753968894738,6.53533564,177.02,176.93,6.53533564]
[1753968895232,6.53533564,177.03,176.92,6.53533564]
[1753968895436,6.53533564,177.01,176.9,6.53533564]
[1753968895939,6.53533564,177.01,176.91,6.53533564]
[1753968896134,11.2948,177.09,176.88,648.19725172]
[1753968896440,6.53533564,177.01,176.91,6.53533564]
[1753968896640,6.53533564,177.01,176.88,648.19725172]
[1753968896840,5.6517,176.96,176.9,6.53533564]
[1753968897036,11.2948,177.09,176.92,6.53533564]
[1753968897236,6.53533564,177.03,176.94,6.53533564]
[1753968897838,5.6519,176.95,176.89,5.6536]
[1753968898144,5.6519,176.95,176.82,2.49637034]
[1753968898145,6.53533564,176.95,176.82,109.37415188]
[1753968898443,5.6523,176.94,176.87,6.53533564]
[1753968898739,5.6523,176.94,176.86,5.6546]
[1753968898937,6.53533564,176.96,176.82,109.37415188]
[1753968899237,6.53533564,176.96,176.85,6.53533564]
[1753968899630,6.53533564,176.96,176.82,109.37415188]
[1753968900040,6.53533564,176.96,176.84,12.19053564]
[1753968900340,6.53533564,176.92,176.82,1.51415188]
[1753968900842,6.53533564,176.96,176.86,6.53533564]
[1753968901039,6.53533564,176.98,176.88,6.53533564]
[1753968901431,6.53533564,176.98,176.86,6.53533564]
[1753968901840,5.653,176.92,176.86,6.53533564]
[1753968902044,6.53533564,176.98,176.87,6.53533564]
[1753968902336,6.53533564,176.94,176.84,6.53533564]
[1753968902541,386.27533564,176.99,176.82,1.51415188]
[1753968902542,379.74,176.99,176.9,6.53533564]
[1753968903239,5.6518,176.96,176.92,6.53533564]
[1753968903440,379.74,176.99,176.92,6.53533564]
[1753968903639,386.27533564,176.99,176.88,6.53533564]
[1753968903837,386.27533564,176.99,176.82,1.51415188]
[1753968903838,6.53533564,176.97,176.82,1.51415188]
[1753968904034,6.53533564,176.97,176.86,6.53533564]
[1753968904235,6.53533564,176.95,176.86,6.53533564]
[1753968904444,5.6539,176.89,176.86,6.53533564]
[1753968904638,6.53533564,176.95,176.86,6.53533564]
[1753968904944,5.655,176.85,176.82,1.51415188]
[1753968905139,9.97650731,176.91,176.82,1.51415188]
[1753968905338,9.97650731,176.88,176.82,1.51415188]
[1753968905540,5.6556,176.83,176.82,1.51415188]
[1753968905741,9.97650731,176.88,176.82,1.51415188]
[1753968905943,5.6556,176.83,176.82,1.51415188]
[1753968906643,9.97650731,176.91,176.82,1.51415188]
[1753968907043,9.97650731,176.88,176.82,1.51415188]
[1753968907245,5.6556,176.83,176.82,1.51415188]
[1753968907642,5.6552,176.85,176.82,1.51415188]
[1753968907844,9.97650731,176.89,176.82,1.51415188]
[1753968908246,5.6556,176.83,176.82,1.51415188]
[1753968908444,15.63210731,176.83,176.82,5.188e-05]
[1753968908645,5.6587,176.74,176.68,9.97650731]
[1753968908845,9.97650731,176.8,176.68,9.97650731]
[1753968909250,5.6591,176.73,176.68,15.63690731]
[1753968909444,9.97650731,176.82,176.68,9.97650731]
[1753968909646,9.97650731,176.85,176.71,9.97650731]
[1753968910042,380.0,176.87,176.74,9.97650731]
[1753968910249,9.97650731,176.95,176.8,9.97650731]
[1753968910443,391.3029,176.97,176.83,9.97650731]
[1753968910648,401.27940731,176.97,176.83,9.97650731]
[1753968910847,380.0,176.97,176.86,9.97650731]
[1753968911051,9.97650731,177.01,176.89,9.97650731]
[1753968911246,5.6514,176.97,176.89,9.97650731]
[1753968911447,9.97650731,177.04,176.92,9.97650731]
[1753968911649,9.97650731,177.04,176.82,380.0]
[1753968911650,126.38072065,177.13,176.95,9.97650731]
[1753968911856,9.97650731,177.1,176.98,9.97650731]
[1753968912045,131.71731813,177.13,176.98,9.97650731]
[1753968912249,131.71731813,177.13,177.01,9.97650731]
[1753968912759,9.97650731,177.1,176.97,9.97650731]
[1753968912948,5.6494,177.03,176.97,9.97650731]
[1753968913153,9.97650731,177.1,176.97,9.97650731]
[1753968913653,9.97650731,177.1,176.91,108.46]
[1753968913851,9.97650731,177.1,176.96,9.97650731]
[1753968914161,9.97650731,177.11,176.98,9.97650731]
[1753968915850,121.74081082,177.13,177.01,9.97650731]
[1753968916247,121.74081082,177.13,177.04,9.97650731]
[1753968917247,5.6469,177.11,177.04,9.97650731]
[1753968917448,380.0,177.17,177.07,9.97650731]
[1753968917652,108.42,177.21,177.07,9.97650731]
[1753968917846,8.26547226,177.2,177.07,9.97650731]
[1753968919657,108.42,177.21,177.06,9.97650731]
[1753968919862,8.27830085,177.2,177.09,9.97650731]
[1753968920153,4.13565845,177.19,177.09,9.97650731]
[1753968920356,108.42,177.21,177.09,9.97650731]
[1753968920557,8.27811494,177.2,177.09,9.97650731]
[1753968920864,108.42,177.21,177.09,9.97650731]
[1753968921162,8.27867965,177.2,177.06,9.97650731]
[1753968921358,9.97650731,177.15,177.03,9.97650731]
[1753968921758,5.6481,177.07,177.03,9.97650731]
[1753968922060,9.97650731,177.15,177.03,9.97650731]
[1753968922456,5.6485,177.06,177.03,9.97650731]
[1753968922856,9.97650731,177.15,177.03,9.97650731]
[1753968923052,8.28737796,177.14,177.03,9.97650731]
[1753968923254,4.14199114,177.13,177.02,9.97650731]
[1753968923457,9.97650731,177.09,176.99,9.97650731]
[1753968924162,9.97650731,177.09,176.96,9.97650731]
[1753968924461,4.14200324,177.08,176.96,9.97650731]
[1753968924665,5.6505,177.0,176.96,9.97650731]
[1753968924867,4.63990983,177.13,176.99,9.97650731]
[1753968925054,8.29249721,177.12,177.03,9.97650731]
[1753968925259,11.2903,177.16,177.03,9.97650731]
[1753968925460,9.97650731,177.14,176.96,108.34]
[1753968925754,9.97650731,177.11,176.97,9.97650731]
[1753968925966,8.29590201,177.1,176.97,9.97650731]
[1753968926162,8.29590201,177.09,176.97,9.97650731]
[1753968926359,9.97650731,177.11,176.97,9.97650731]
[1753968926555,8.30032821,177.1,176.96,108.34]
[1753968926761,9.97650731,177.08,176.94,379.92]
[1753968927064,9.97650731,177.05,176.94,379.92]
[1753968927265,5.6516,176.96,176.94,379.92]
[1753968927461,9.97650731,177.07,176.94,379.92]
[1753968927668,8.30033417,177.06,176.94,379.92]
[1753968927862,5.6517,176.96,176.94,379.92]
[1753968928064,11.2956,177.08,176.94,379.92]
[1753968928264,5.6507,176.99,176.97,9.97650731]
[1753968928566,11.2956,177.08,176.97,9.97650731]
[1753968928863,8.30392744,177.07,176.97,9.97650731]
[1753968929064,9.97650731,177.1,176.97,9.97650731]
[1753968929260,8.30578838,177.09,176.97,9.97650731]
[1753968929460,9.97650731,177.1,177.0,9.97650731]
[1753968929663,8.3062657,177.09,177.0,9.97650731]
[1753968929967,9.97650731,177.13,177.0,9.97650731]
[1753968930163,8.30634627,177.12,177.0,9.97650731]
[1753968930467,8.30634627,177.11,177.0,9.97650731]
[1753968930671,8.30634627,177.1,177.0,9.97650731]
[1753968930863,237.05599563,177.14,177.03,9.97650731]
[1753968931167,8.30930439,177.13,177.03,9.97650731]
[1753968931367,8.30930439,177.12,177.03,9.97650731]
[1753968931568,232.4160858,177.14,177.03,9.97650731]
[1753968931768,5.6479,177.08,177.03,9.97650731]
[1753968932062,123.9360858,177.14,177.06,9.97650731]
[1753968932568,4.63990983,177.24,177.12,9.97650731]
[1753968932762,5.6441,177.2,177.15,9.97650731]
[1753968932963,14.61641714,177.26,177.15,9.97650731]
[1753968933169,8.34343435,177.24,177.07,108.46]
[1753968933373,8.34343435,177.23,177.14,9.97650731]
[1753968933565,9.97650731,177.26,177.14,9.97650731]
[1753968933770,5.6444,177.19,177.14,9.97650731]
[1753968934370,5.644,177.2,177.14,9.97650731]
[1753968934570,9.97650731,177.26,177.14,9.97650731]
[1753968934767,9.97650731,177.23,177.1,9.97650731]
[1753968935171,9.97650731,177.23,177.13,9.97650731]
[1753968935471,108.46,177.28,177.13,9.97650731]
[1753968935472,5.6444,177.19,177.13,9.97650731]
[1753968935665,9.97650731,177.26,177.13,9.97650731]
[1753968935865,8.29572824,177.24,177.13,9.97650731]
[1753968936073,9.97650731,177.26,177.13,9.97650731]
[1753968936262,9.97650731,177.23,177.13,9.97650731]
[1753968936465,4.12539664,177.22,177.1,9.97650731]